Cogmind - Beta 9.1 @@@ ROGUE MODE // 2019.10.30 @ 13:53:20 Player: MrPainting Result: Destroyed by D-53 Grenadier with Mini Grenade Launcher Performance ------------- Evolutions (1) 500 Regions Visited (4) 800 Robots Destroyed (62) 310 Value Destroyed (918) 918 Prototype IDs (4) 80 Alien Tech Used (0) 0 Bonus (103) 103 TOTAL SCORE: 2711 Bonus ------- High Alert Combat Kills 21 Follower Combat Kills 114 Friendly Fire -32 Cogmind --------- Core Integrity 0/400 Matter 57/300 Energy 255/265 System Corruption 0% Temperature Cool (46) Location -9/Mines Parts ------- Power (1) Improved Ion Engine Propulsion (4) Light Treads Utility (2) Large Storage Unit Large Storage Unit Weapon (2) Advanced Beam Cannon Advanced Beam Cannon Inventory (16) Medium Storage Unit Experimental Sensor Array Advanced Signal Interpreter Improved Targeting Computer Advanced Targeting Computer Advanced Targeting Computer Advanced Targeting Computer Advanced Targeting Computer Improved Power Shielding Propulsion Shielding Shield Generator Particle Cannon Heavy Assault Rifle Autogun Mini Grenade Launcher Mini Grenade Launcher Peak State ------------ Power Light Nuclear Core Propulsion Hover Unit Hover Unit Improved Hover Unit Improved Hover Unit Utility Experimental Sensor Array Light Armor Plating Weapon Advanced Beam Cannon Advanced Beam Cannon Inventory Small Storage Unit Improved Signal Interpreter Improved Targeting Computer Utility Shielding [Rating: 22] Favorites ----------- Power Light Ion Engine Engine Light Ion Engine Power Core Light Nuclear Core Propulsion Light Treads Treads Light Treads Hover Unit Improved Hover Unit Utility Small Storage Unit Device Improved Heat Sink Storage Small Storage Unit Protection Light Armor Plating Weapon Assault Rifle Energy Cannon Advanced Beam Cannon Ballistic Gun Assault Rifle Ballistic Cannon Improved Light Cannon Launcher Mini Grenade Launcher Build | -11 -10 -10 -9 -9 ------- Run | Scr Mat Min Mat Min Slots Evolved 2 | . . . 2 . Power . | . . . . . Propulsion 2 | . . . 2 . Utility . | . . . . . Weapon . | . . . . . Parts Attached 42 | 6 1 1 25 9 Power 4 | 1 1 . 1 1 Engine 3 | 1 1 . . 1 Core 1 | . . . 1 . Reactor . | . . . . . Propulsion 10 | 2 . . 7 1 Treads 6 | 2 . . 3 1 Leg . | . . . . . Wheel . | . . . . . Hover 4 | . . . 4 . Flight . | . . . . . Utility 9 | 1 . 1 7 . Device 2 | . . 1 1 . Storage 4 | 1 . . 3 . Processor . | . . . . . Hackware . | . . . . . Protection 3 | . . . 3 . Artifact . | . . . . . Weapon 19 | 2 . . 10 7 Energy Gun . | . . . . . Energy Cannon 5 | . . . 2 3 Ballistic Gun 9 | 2 . . 5 2 Ballistic Cannon 1 | . . . 1 . Launcher 4 | . . . 2 2 Special Weapon . | . . . . . Impact Weapon . | . . . . . Slashing Weapon . | . . . . . Piercing Weapon . | . . . . . Special Melee Weapon . | . . . . . Unidentified Prototypes 2 | . . . 2 . Parts Lost 10 | . 1 . 7 2 Power 2 | . 1 . 1 . Propulsion 7 | . . . 5 2 Utility 1 | . . . 1 . Weapon . | . . . . . Highest Loss Streak 4 | . 1 . 4 1 Average Slot Usage (%) 85 | . 83 92 81 84 Engine 8 | . 12 14 2 9 Core 2 | . . . 5 . Treads 22 | . 28 28 14 30 Hover 7 | . . . 16 . Device 3 | . . 7 3 . Storage 14 | . 14 14 11 22 Protection 2 | . . . 5 . Energy Cannon 2 | . . . 3 7 Ballistic Gun 17 | . 28 28 9 9 Ballistic Cannon 2 | . . . 5 . Launcher 2 | . . . 4 5 Naked Turns . | . . . . . Heaviest Build 47 | 13 13 12 34 47 Greatest Support 60 | 40 40 40 60 60 Greatest Overweight (x) 2 | 1 . . 2 1 Average Overweight (x) . | . . . . . Largest Inventory Capacity 16 | 6 6 6 16 16 Average Capacity 8 | 5 6 6 7 16 Most Carried 16 | 4 3 6 14 16 Average Carried 7 | . 1 5 7 15 Final Capacity 16 | 6 6 6 16 16 Final Carried 16 | . 3 6 14 16 Class Distribution -------------------- 87% | Mutant 12% | Scavenger-Mutant Dominant Class ---------------- Mutant | -10/Materials Mutant | -10/Mines Mutant | -9/Materials Scavenger-Mutant | -9/Mines Resources | -11 -10 -10 -9 -9 ----------- Run | Scr Mat Min Mat Min Matter Collected 1303 | 131 183 180 604 205 Remotely . | . . . . . Salvage Created 1098 | . 267 62 730 39 Parts 96 | . 18 10 62 6 Haulers Intercepted 2 | . . . 2 . Recyclers Shooed 1 | . . . 1 . Parts Field Recycled . | . . . . . Retrieved Matter . | . . . . . Parts Self-Destructed . | . . . . . Prevented . | . . . . . Kills | -11 -10 -10 -9 -9 ------- Run | Scr Mat Min Mat Min Combat Hostiles Destroyed 47 | . 8 2 27 10 Guns 19 | . 8 2 9 . Cannons 7 | . . . 7 . AOE 20 | . . . 10 10 Classes Destroyed 11 | . 3 1 5 2 Worker 4 | . . 2 2 . Builder 2 | . . . 1 1 Tunneler 1 | . . . . 1 Hauler 2 | . . . 2 . Recycler 3 | . 1 . 2 . Watcher 3 | . . . 3 . Swarmer 23 | . 6 2 15 . Grunt 11 | . 2 . 9 . Duelist 1 | . . . 1 . Sentry 2 | . . . 2 . Assembled 10 | . . . . 10 Best Kill Streak 12 | . 7 2 7 12 Combat Bots Only 10 | . 6 2 5 10 Max Kills in Single Turn 7 | . 2 1 3 7 Gunslinging 1 | . 1 . . . Exploded 6 | . . . 3 6 Melee . | . . . . . Uniques/NPCs Destroyed . | . . . . . Combat | -11 -10 -10 -9 -9 -------- Run | Scr Mat Min Mat Min Damage Taken 2187 | . 396 102 1234 455 Core 510 | . 73 30 289 118 Absorbed by Shields . | . . . . . Core Remaining (%) 79 | 100 . 58 . . Volleys Fired 108 | . 24 9 69 6 Largest 2 | . 2 2 2 2 Hottest 136 | . 40 40 136 136 Shots Fired 212 | . 48 18 135 11 Gun 142 | . 48 18 76 . Cannon 44 | . . . 42 2 Launcher 26 | . . . 17 9 Special . | . . . . . Kinetic 180 | . 48 18 114 . Thermal 6 | . . . 4 2 Explosive 26 | . . . 17 9 Electromagnetic . | . . . . . Robot Hit Streak 12 | . 7 7 12 6 Robot Miss Streak 5 | . 5 2 4 2 Penetration Max . | . . . . . Secondary Targets 4 | . 2 1 1 . Max Gunslinging Chain 1 | . 1 1 1 . Shots Hit Robots 121 | . 29 13 77 2 Core Hits 89 | . 11 4 51 23 Critical Hits 1 | . . . 1 . Critical Kills . | . . . . . Critical Parts Destroyed 1 | . . . 1 . Melee Attacks . | . . . . . Impact . | . . . . . Slashing . | . . . . . Piercing . | . . . . . Sneak Attacks . | . . . . . Combat Hostiles . | . . . . . Follow-up Attacks . | . . . . . Damage Inflicted 3556 | . 379 149 2235 793 Guns 1101 | . 379 149 573 . Cannons 591 | . . . 549 42 Explosions 1864 | . . . 1113 751 Melee . | . . . . . Ramming . | . . . . . Kinetic 1629 | . 379 149 1101 . Thermal 63 | . . . 21 42 Explosive 1864 | . . . 1113 751 Electromagnetic . | . . . . . Impact . | . . . . . Slashing . | . . . . . Piercing . | . . . . . Highest Corruption . | . . . . . Average Corruption . | . . . . . Corruption Purged . | . . . . . Overload Shots . | . . . . . Overflow Damage 28 | . . . 17 11 Projectiles . | . . . . . Explosions 28 | . . . 17 11 Melee . | . . . . . Knockbacks 12 | . . . 12 . Impact . | . . . . . Kinetic 9 | . . . 9 . Secondary 3 | . . . 3 . Self-Inflicted Damage 376 | . . . 327 49 Shots 10 | . . . 8 2 Rammed . | . . . . . Targets Rammed . | . . . . . Kicked . | . . . . . Crushed . | . . . . . Highest Temperature 307 | . 5 2 307 46 Average Temperature 113 | . 5 2 116 34 Received Heat Transfer 396 | . 108 9 261 18 Effects 1 | . . . 1 . Interference 1 | . . . 1 . Siege Activations . | . . . . . Robots Corrupted . | . . . . . Combat Hostiles . | . . . . . Parts Fried . | . . . . . Impact Corruptions 1 | . . . 1 . Robots Melted . | . . . . . Combat Hostiles . | . . . . . Parts Melted . | . . . . . Heat Transferred 111 | . . . 37 74 Parts Sabotaged . | . . . . . Parts Stolen . | . . . . . Parts Stripped . | . . . . . Power Chain Reactions . | . . . . . Missiles Intercepted . | . . . . . Alert | -11 -10 -10 -9 -9 ------- Run | Scr Mat Min Mat Min Peak Influence 511 | . 212 140 511 219 Average Influence 164 | . 117 84 221 213 Maximum Alert Level 2 | . 1 . 2 1 Low Security (%) 56 | . . . . . Level 1 40 | . . . . . Level 2 2 | . . . . . Level 3 . | . . . . . Level 4 . | . . . . . Level 5 . | . . . . . High Security . | . . . . . Max Security . | . . . . . Squads Dispatched 3 | . 1 . 2 . Investigation 2 | . . . 2 . Extermination . | . . . . . Reinforcement 1 | . 1 . . . Assault . | . . . . . Garrison . | . . . . . Intercept . | . . . . . Construction Impeded . | . . . . . Haulers Reinforced . | . . . . . Stealth | -11 -10 -10 -9 -9 --------- Run | Scr Mat Min Mat Min Distress Signals 1 | . . . 1 . Communications Jammed . | . . . . . Distress Signals . | . . . . . Times Spotted 71 | . 11 5 40 15 Peak Tracking Total 12 | . 6 3 6 12 Tactical Retreats 4 | . . . 4 . Traps | -11 -10 -10 -9 -9 ------- Run | Scr Mat Min Mat Min Traps Triggered 1 | . . . 1 . Indirectly . | . . . . . Trap Hack Attempts . | . . . . . Triggered . | . . . . . Disarmed . | . . . . . Reprogrammed . | . . . . . Reused . | . . . . . Traps Extracted . | . . . . . Installed . | . . . . . Triggered . | . . . . . Machines | -11 -10 -10 -9 -9 ---------- Run | Scr Mat Min Mat Min Machines Disabled 6 | . . 1 5 . Max in Single Turn 1 | . . 1 1 . Machines Sabotaged . | . . . . . Garrisons Compromised . | . . . . . Overloaded Fab Kills . | . . . . . Fab Network Shutdowns . | . . . . . Hacking | -11 -10 -10 -9 -9 --------- Run | Scr Mat Min Mat Min Machines Accessed 5 | . 3 . 2 . Terminals 3 | . 3 . . . Fabricators . | . . . . . Repair Stations 1 | . . . 1 . Recycling Units . | . . . . . Scanalyzers 1 | . . . 1 . Garrison Access . | . . . . . Total Hacks 13 | . 7 . 6 . Successful 11 | . 5 . 6 . Failed 2 | . 2 . . . Catastrophic . | . . . . . Database Lockouts . | . . . . . Manual 4 | . 4 . . . Terminals 7 | . 7 . . . Fabricators . | . . . . . Repair Stations 2 | . . . 2 . Recycling Units . | . . . . . Scanalyzers 4 | . . . 4 . Garrison Access . | . . . . . Terminal Hacks 2 | . 2 . . . Prototype ID Bank 1 | . 1 . . . Terminal Index 1 | . 1 . . . Fabricator Hacks . | . . . . . Repair Station Hacks 2 | . . . 2 . Scan Component 1 | . . . 1 . Repair 1 | . . . 1 . Recycling Unit Hacks . | . . . . . Scanalyzer 4 | . . . 4 . Insert Component 2 | . . . 2 . Analyze 2 | . . . 2 . Garrison Access Hacks . | . . . . . Unauthorized Hacks 7 | . 7 . . . Terminals 3 | . 3 . . . Botnet 3 | . 3 . . . Fabricators . | . . . . . Repair Stations . | . . . . . Recycling Units . | . . . . . Scanalyzers . | . . . . . Garrison Access . | . . . . . Data Cores Recovered . | . . . . . Used . | . . . . . Hacking Detections 4 | . 2 . 2 . Full Trace Events . | . . . . . Feedback Events . | . . . . . Feedback Blocked . | . . . . . Robot Schematics Acquired . | . . . . . Robots Built . | . . . . . Matter . | . . . . . Time . | . . . . . Total Robot Build Rating . | . . . . . Part Schematics Acquired 2 | . . . 2 . Parts Built . | . . . . . Matter . | . . . . . Time . | . . . . . Total Part Build Rating . | . . . . . Parts Repaired 1 | . . . 1 . Time 80 | . . . 80 . Parts Recycled . | . . . . . Recycled Matter . | . . . . . Retrieved Matter . | . . . . . Retrieved Components . | . . . . . Parts Scanalyzed 2 | . . . 2 . Part Schematics Acquired 2 | . . . 2 . Parts Damaged 1 | . . . 1 . Bothacking | -11 -10 -10 -9 -9 ------------ Run | Scr Mat Min Mat Min Used RIF Installer . | . . . . . Robots Hacked . | . . . . . Non-combat . | . . . . . Combat . | . . . . . Robot Hacks Applied . | . . . . . Relay Couplers Released . | . . . . . Robots Rewired . | . . . . . Allies Hacked . | . . . . . Hacks Repelled . | . . . . . Allies | -11 -10 -10 -9 -9 -------- Run | Scr Mat Min Mat Min Total Allies 3 | . . 3 . . Largest Group 3 | . . 3 3 . Highest-Rated Group 40 | . . 40 40 . Highest-Rated Ally 16 | . . 16 16 . Total Orders . | . . . . . Ally Attacks 26 | . . 14 12 . Total Damage 314 | . . 156 158 . Kills 6 | . . 3 3 . Allies Corrupted . | . . . . . Allies Melted . | . . . . . Intel | -11 -10 -10 -9 -9 ------- Run | Scr Mat Min Mat Min Robot Analysis Total . | . . . . . Derelict Logs Recovered 1 | . . 1 . . Drone Launches . | . . . . . Drone Recoveries . | . . . . . Exploration | -11 -10 -10 -9 -9 ------------- Run | Scr Mat Min Mat Min Turns Passed 2338 | 46 359 613 976 344 Spaces Moved 1349 | 34 176 364 588 187 Core 17 | 17 . . . . Treads 1028 | 17 176 364 284 187 Legs . | . . . . . Wheels . | . . . . . Hover 304 | . . . 304 . Flight . | . . . . . Fastest Speed 48 | 50 160 160 48 160 Average Speed 135 | 106 160 160 106 161 Slowest Speed 200 | 160 160 160 200 180 Overloaded Moves . | . . . . . Propulsion Burnouts . | . . . . . Robots Hopped . | . . . . . Cave-ins Triggered . | . . . . . Exploration Rate (%) 34 | 3 25 70 37 39 Regions Visited 4 Branch Regions 2 Pre-discovered Areas 1 | . . 1 . . Known Exits Taken . | . . . . . Unknown Exits Taken 4 | 1 1 1 1 . Scrap Searched 2 | . . 1 . 1 Spaces Dug . | . . . . . Terrain Destroyed 160 | . . . 105 55 Melee . | . . . . . Projectile . | . . . . . AOE 160 | . . . 105 55 Actions | -11 -10 -10 -9 -9 --------- Run | Scr Mat Min Mat Min Total 1650 | 43 206 376 811 214 Wait 99 | . 2 . 90 7 Move 1345 | 33 175 363 587 187 Hop . | . . . . . Pick Up 35 | 4 4 3 20 4 Fast Attach 18 | 2 . 1 14 1 Attach 7 | 4 1 . 1 1 Detach . | . . . . . Swap 17 | . . . 10 7 Drop 21 | . . . 20 1 Fire 108 | . 24 9 69 6 Melee . | . . . . . Ram . | . . . . . Kick . | . . . . . Crush . | . . . . . Escape Stasis . | . . . . . Rewire . | . . . . . Trap . | . . . . . Miscellaneous . | . . . . . Route ------- -11/Scrapyard -10/Materials -10/Mines -9/Materials -9/Mines History --------- Turn | Location | Event 6 | -11/Scrapyard | Discovered new exit (range 16) 47 | -11/Scrapyard | Entered Materials 179 | -10/Materials | Discovered new exit (range 9) 314 | -10/Materials | Build established: Mutant 406 | -10/Materials | Entered Mines 411 | -10/Mines | Found a damaged Exp. Sensor Array with a note attached 422 | -10/Mines | Found Prototype Device 436 | -10/Mines | Learned location of Zion (-6) 552 | -10/Mines | Discovered new exit (range 10) 564 | -10/Mines | Assisted by bots powering up and referring to "LRC-V3" 1019 | -10/Mines | Entered Materials 1019 | -9/Materials | Accompanied by 3 allies 1019 | -9/Materials | Evolved 2 slots: Propulsion x2 1571 | -9/Materials | Identified Exp. Sensor Array 1654 | -9/Materials | Repaired Exp. Sensor Array 1766 | -9/Materials | Lost 4 parts (1p2n1u) 1783 | -9/Materials | Core integrity fell below 50% 1971 | -9/Materials | Discovered new exit (range 9) 1995 | -9/Materials | Entered Mines 2003 | -9/Mines | Joined a pair of Derelicts in attacking an 0b10 outpost 2276 | -9/Mines | Assembled infested the area 2281 | -9/Mines | Assisted by a Guerilla fighting off Assembled 2320 | -9/Mines | Build established: Scavenger-Mutant 2322 | -9/Mines | Destroyed 10 combat bots 2332 | -9/Mines | Core integrity fell below 20% 2339 | -9/Mines | Destroyed by D-53 Grenadier with Mini Grenade Launcher Last Messages --------------- 02296_ Lgt. Treads destroyed. 02296_ as-53509 destroyed. 02297_ The unstable cave ceiling collapses. 02297_ U-05 Engineer lays Concrete. 02299_ HV Slug penetrates Wall. 02300_ The unstable cave ceiling collapses. 02300_ U-05 Engineer lays Concrete. 02301_ HV Slug penetrates Wall. 02301_ U-05 Engineer lays Concrete. 02301_ U-05 Engineer destroyed. 02301_ as-45752 destroyed. 02305_ The unstable cave ceiling collapses. 02307_ Acquired 18 matter. 02315_ The unstable cave ceiling collapses. 02315_ C3-OYK(h) destroyed. 02322_ The unstable cave ceiling collapses. 02330_ Acquired 41 matter. 02331_ The unstable cave ceiling collapses. 02337_ Lgt. Treads destroyed. 02338_ The unstable cave ceiling collapses. Map ----- +----------------------------------------------------+ | ?????????????????????????????????????????????????? | | ?????????????????????????????????????????????????? | | # #??????????????????????????????????????????????? | | #??????????????????????????????????????????????? | | ?????????????????????????????????????????????????? | | ?????????????????????????????????????????????????? | | ?????????????????????????????????????????????????? | | ?????????????????????????????????????????????????? | | ?????????????????????????????????????????????????? | | ?????????????????????????????????????????????????? | | ?????????????????????????????????????????????????? | | ?????????????????????????????????????????????????? | | ?????????????????????????????????????????????????? | | ?????????????????????????????????????????????????? | | ?????????????????????????????????????????????????? | | ?????????????????????????????????????????????????? | | ?????????????????????????????????????????????????? | | ?#???????????????????????????????????????????????? | | #???????????????????????????????????????????????? | | #???????????????????????????????????????????????? | | #?????????????????????#####?????????????????????? | | #??????????????????#### ###?????? ????????????? | | ????????????????????# #???? = ?????????? | | ????????????????????# #### !% #?????????? | | ###############????## d %= #??????????? | | #???## @ #??????????????? | | #??##; #### #??????????????? | | #### ####### ##?#; #???????????????????? | | ???# #???### ### #???????????????????? | | ???# #???# ## ##???????????????????? | | ??## #?### # ##??????????????????? | | ?## ### " #??????????????? | | ## = ##??????????????? | | # | # #???????????????? | | !* # ##???????????????? | | ## ####????????????????? | | # # # #???????????????????? | | #### #### # # # # ###???????????????????? | | ???####??###################?????????????????????? | | ?????????????????????????????????????????????????? | | | | | | | | | | | | | | | | | | | | | +----------------------------------------------------+ Best States ------------- Heat Dissipation 42 Energy Generation 14 Energy Capacity 265 Matter Stores 300 Matter Capacity 300 Sight Range 16 Terrain Scan Density 10 Armor Coverage 150 Utility Shielding 33 Evasion (%) 55 Recoil Reduction 3 Item Schematics ----------------- Exp. Sensor Array | -9/Materials | Scanalyzed Adv. Signal Interpreter | -9/Materials | Scanalyzed Robot Schematics ------------------ None Fabricated ------------ Nothing Alien Tech Used ----------------- None Achievements -------------- None Challenges ------------ None Game ------ Seed GreatDispersionDoublenader Manual? 0 Play Time 00:20:12 Cumulative 66.1 hours Start 2019.10.30 @ 13:35:42 End 2019.10.30 @ 13:53:20 Sessions 1 Manual Loads 0 Difficulty Rogue Special Mode None Game No. 103 Rogue 103 Adventurer 0 Explorer 0 Win Type - Total 0 Types 0/0/0/0/0/0/0 Lore% 27 Gallery% 39 Achievement% 29 Wizard Run 0 Options --------- ASCII 0 Keyboard 0 Movement Mouse Keybinds 0 Fullscreen 1 Font 18/SmallcapsGlow Map View 76x50 Tactical HUD 1 Map Filters NONE Filters NONE Steam 1 RUN: b100cbb5-4a90-4fa1-8c89-5c2cc0c7f07b